bitfinex-derivatives/quotes_BTCF0:USTF0_20250716
["timestamp","ask_amount","ask_price","bid_price","bid_amount"]
[1752679235044,0.04792,119250.0,119200.0,1.69672973]
[1752679235340,0.05243,119250.0,119240.0,0.60116727]
[1752679235542,0.05243,119250.0,119240.0,1.25320727]
[1752679236244,0.06438032,119260.0,119250.0,0.1676563]
[1752679236439,0.06438032,119260.0,119240.0,0.51732697]
[1752679236744,0.00451,119250.0,119240.0,0.8288304]
[1752679237051,0.00851,119250.0,119240.0,0.8288304]
[1752679237230,0.05643,119250.0,119240.0,0.8288304]
[1752679237638,0.04792,119250.0,119240.0,1.26232727]
[1752679237832,0.07000844,119260.0,119250.0,0.2514795]
[1752679238144,0.02208844,119260.0,119250.0,0.72688837]
[1752679239036,0.02208844,119260.0,119250.0,0.89459237]
[1752679239037,0.005,119260.0,119250.0,0.89459237]
[1752679239437,0.005,119260.0,119250.0,2.39459237]
[1752679239638,0.005,119260.0,119250.0,1.7095675]
[1752679239942,0.005,119260.0,119250.0,2.80266437]
[1752679240538,0.1676704,119240.0,119230.0,1.38525525]
[1752679240733,0.05643,119250.0,119240.0,0.1676704]
[1752679240932,0.004,119250.0,119240.0,0.60116727]
[1752679241344,0.00386272,119270.0,119260.0,0.1676423]
[1752679241547,0.00386272,119270.0,119260.0,1.26033917]
[1752679242141,0.00386272,119270.0,119260.0,1.25722598]
[1752679242142,0.00075008,119270.0,119260.0,1.25722598]
[1752679242935,0.00075008,119270.0,119260.0,0.82372911]
[1752679243138,0.1676682,119270.0,119260.0,1.25651577]
[1752679243344,4e-05,119270.0,119260.0,1.25627577]
[1752679243538,4e-05,119270.0,119260.0,0.59731577]
[1752679243743,0.1676682,119270.0,119260.0,1.25615577]
[1752679243942,0.2200982,119270.0,119260.0,0.1638189]
[1752679244135,0.1676563,119250.0,119240.0,0.1696663]
[1752679244338,0.2155763,119250.0,119240.0,0.8285863]
[1752679244734,0.2200863,119250.0,119240.0,0.8285863]
[1752679245142,0.0474585,119270.0,119250.0,0.0419123]
[1752679245344,0.2155634,119260.0,119250.0,0.60113917]
[1752679245540,0.2200734,119260.0,119250.0,0.8258823]
[1752679245747,0.2200734,119260.0,119240.0,0.56124407]
[1752679245748,0.2200863,119250.0,119240.0,0.68698917]
[1752679246045,0.2200864,119250.0,119240.0,1.34514917]
[1752679246249,0.2200864,119250.0,119240.0,0.002]
[1752679246444,0.2200864,119250.0,119240.0,0.65964]
[1752679246947,0.3878064,119250.0,119240.0,0.002]
[1752679247539,0.3878064,119250.0,119240.0,0.1696704]
[1752679247744,0.2200864,119250.0,119240.0,0.1696704]
[1752679247946,0.2200864,119250.0,119240.0,0.1676704]
[1752679248143,0.05243,119250.0,119240.0,0.1676704]
[1752679248343,0.01678809,119260.0,119250.0,0.1676564]
[1752679248344,0.06470809,119260.0,119250.0,0.1676564]
[1752679248542,0.00311082,119260.0,119250.0,1.25783327]
[1752679248945,0.00311082,119260.0,119250.0,2.58457727]
[1752679249444,0.00311082,119260.0,119250.0,2.41695327]
[1752679249953,0.00311082,119260.0,119250.0,1.76019327]
[1752679250148,0.00311082,119260.0,119250.0,2.41739327]
[1752679250451,0.00311082,119260.0,119250.0,1.76119327]
[1752679250951,0.00311082,119260.0,119250.0,2.41715327]
[1752679251251,0.00331082,119260.0,119250.0,2.41715327]
[1752679251848,4e-05,119270.0,119250.0,2.41715327]
[1752679251849,4e-05,119270.0,119260.0,0.1676423]
[1752679252054,4e-05,119270.0,119260.0,0.60113917]
[1752679252951,4e-05,119270.0,119260.0,1.25593917]
[1752679253552,0.05241,119290.0,119280.0,0.1676142]
[1752679253744,0.04241,119290.0,119280.0,1.25056107]
[1752679254649,0.19517,119300.0,119290.0,0.1676001]
[1752679254844,0.1951661,119300.0,119290.0,0.60109697]
[1752679255149,0.02758,119300.0,119290.0,0.60109697]
[1752679255360,0.02758,119300.0,119290.0,0.61091697]
[1752679255657,4e-05,119310.0,119300.0,0.1774061]
[1752679255949,0.220022,119310.0,119300.0,1.25480297]
[1752679256151,4e-05,119310.0,119300.0,1.26462297]
[1752679256449,0.2618518,119330.0,119320.0,0.167558]
[1752679256450,0.0475,119330.0,119320.0,0.167558]
[1752679256647,0.02496,119350.0,119340.0,0.1675299]
[1752679256855,4e-05,119350.0,119340.0,1.26416677]
[1752679257057,4e-05,119350.0,119340.0,1.27825786]
[1752679257262,0.1973859,119350.0,119340.0,0.8111299]
[1752679257554,0.02987,119350.0,119340.0,0.8111299]
[1752679257855,0.02496,119350.0,119340.0,0.8258599]
[1752679258046,0.02496,119350.0,119340.0,1.25935677]
[1752679258248,4e-05,119350.0,119340.0,1.26444677]
[1752679258444,0.1675559,119350.0,119340.0,1.26444677]
[1752679258656,0.02496,119350.0,119340.0,1.25935677]
[1752679258853,4e-05,119350.0,119340.0,1.26324677]
[1752679259570,4e-05,119350.0,119340.0,1.27771101]
[1752679259751,4e-05,119350.0,119340.0,1.34343353]
[1752679260144,4e-05,119350.0,119340.0,0.1575299]
[1752679260145,0.2150559,119350.0,119340.0,0.1575299]
[1752679260347,0.2150559,119350.0,119300.0,1.5776633]
[1752679260348,0.05241,119330.0,119310.0,0.0837838]
[1752679260548,0.2618771,119310.0,119300.0,0.1]
[1752679260754,0.1676142,119280.0,119270.0,0.1676238]
[1752679260955,0.0475,119280.0,119270.0,0.8198638]
[1752679261351,0.0475,119280.0,119270.0,1.25336067]
[1752679261547,0.2151142,119280.0,119270.0,1.25809067]
[1752679261753,0.256324,119290.0,119280.0,0.1676142]
[1752679261953,0.1675973,119300.0,119290.0,0.1676001]
[1752679262159,0.1994954,119300.0,119290.0,0.65352]
[1752679262354,0.2044054,119300.0,119290.0,0.64352]
[1752679262661,0.2144068,119300.0,119290.0,0.8627335]
[1752679262853,0.1675984,119300.0,119290.0,0.65324]
[1752679263059,0.1676141,119280.0,119270.0,0.73156097]
[1752679263361,0.1676141,119280.0,119270.0,1.38468097]
[1752679263960,0.2151114,119290.0,119280.0,0.1676141]
[1752679264155,0.1925201,119290.0,119280.0,0.61584097]
[1752679264363,0.2151001,119290.0,119280.0,0.60111097]
[1752679264763,0.0475,119290.0,119280.0,0.60111097]
[1752679265350,0.05241,119300.0,119290.0,0.1676001]
[1752679265559,0.2199702,119320.0,119310.0,0.167572]
[1752679265759,0.05241,119320.0,119310.0,0.819012]
[1752679266062,0.219968,119320.0,119310.0,0.819012]
[1752679266263,0.05241,119320.0,119310.0,0.819012]
[1752679266458,0.0475,119320.0,119310.0,0.819012]
[1752679267071,0.0475,119320.0,119310.0,0.823742]
[1752679267259,0.0467925,119340.0,119330.0,0.1675439]
[1752679267260,0.2618333,119340.0,119330.0,0.1675439]
[1752679267465,0.0601865,119340.0,119330.0,1.25168077]
[1752679267668,0.0177765,119340.0,119330.0,1.26659077]
[1752679267961,4e-05,119350.0,119330.0,1.26659077]
[1752679267962,4e-05,119350.0,119340.0,0.1797499]
[1752679268168,4e-05,119350.0,119340.0,1.26404677]
[1752679269273,0.02262,119350.0,119340.0,1.25146677]
[1752679269566,0.02262,119350.0,119340.0,1.26146677]
[1752679269567,0.00024,119350.0,119340.0,1.26146677]
[1752679269777,0.00024,119350.0,119340.0,1.26368677]
[1752679270267,0.00028,119350.0,119340.0,1.26368677]
[1752679271168,0.04778,119350.0,119340.0,1.25106677]
[1752679271368,0.2152958,119350.0,119340.0,0.60102677]
[1752679271567,0.2152958,119350.0,119340.0,0.8167299]
[1752679271568,0.05269,119350.0,119340.0,0.8167299]
[1752679271972,0.04778,119350.0,119340.0,1.25022677]
[1752679272168,0.00028,119350.0,119340.0,1.26022677]
[1752679272366,0.00028,119350.0,119340.0,0.61102677]
[1752679272567,0.1677958,119350.0,119340.0,1.25982677]
[1752679272762,0.1675299,119340.0,119330.0,0.2096157]
[1752679272967,0.1675299,119340.0,119330.0,0.1675327]
[1752679272968,0.2201399,119340.0,119330.0,0.1675327]
[1752679273167,0.05261,119340.0,119330.0,1.24906957]
[1752679273360,0.2152299,119340.0,119330.0,1.24906957]
[1752679273770,0.2201399,119340.0,119330.0,1.24906957]
[1752679273972,0.2201399,119340.0,119330.0,0.64804]
[1752679274163,0.2150439,119330.0,119320.0,0.0002]
[1752679274366,0.167558,119320.0,119310.0,1.85578367]
[1752679274595,0.167558,119320.0,119310.0,1.80572]
[1752679274596,0.220168,119320.0,119310.0,1.80572]
[1752679275071,0.219982,119310.0,119300.0,0.0002]
[1752679275274,0.2199961,119300.0,119290.0,0.0002]
[1752679275476,0.2199961,119300.0,119280.0,0.2514084]
[1752679275477,0.2200101,119290.0,119280.0,0.209705]
[1752679275680,0.2202101,119290.0,119280.0,0.856265]
[1752679276673,0.2153001,119290.0,119280.0,0.856265]
[1752679276872,0.0477,119290.0,119280.0,1.28976187]
[1752679277175,0.2153001,119290.0,119280.0,0.856265]
[1752679277573,0.2153001,119290.0,119270.0,1.74421586]
[1752679277574,0.1676142,119280.0,119270.0,0.303532]
[1752679277772,0.1676142,119280.0,119260.0,0.64584]
[1752679277773,0.2200382,119270.0,119260.0,0.64584]
[1752679277981,0.2200382,119270.0,119250.0,0.0002]
[1752679277982,0.2200523,119260.0,119250.0,0.0002]
[1752679278174,0.2200663,119250.0,119240.0,0.05968675]
[1752679278370,0.2200804,119240.0,119230.0,0.05968675]
[1752679278570,0.2200804,119240.0,119220.0,0.07445123]
[1752679278571,0.2200944,119230.0,119220.0,0.00029279]
[1752679278874,0.2201085,119220.0,119210.0,0.0002]
[1752679279077,0.2150126,119210.0,119200.0,0.07435844]
[1752679279277,0.2199226,119210.0,119200.0,0.07435844]
[1752679279472,0.2199226,119210.0,119190.0,0.07435844]
[1752679279473,0.2201366,119200.0,119190.0,0.07435844]
[1752679279868,0.05250279,119200.0,119190.0,0.24209914]
[1752679280174,9.279e-05,119200.0,119190.0,0.88865914]
[1752679280367,9.279e-05,119200.0,119190.0,0.72969601]
[1752679280579,9.279e-05,119200.0,119190.0,1.37625601]
[1752679281176,0.2515404,119230.0,119220.0,0.1676985]
[1752679281367,0.2243769,119230.0,119220.0,0.1676985]
[1752679281572,0.1924538,119230.0,119220.0,0.8149785]
[1752679281877,0.02476,119230.0,119220.0,1.24847537]
[1752679282093,0.04929,119250.0,119240.0,0.1676704]
[1752679282271,0.3054504,119270.0,119260.0,0.1676422]
[1752679282467,0.3054504,119270.0,119260.0,0.01680865]
[1752679282673,0.3054504,119270.0,119260.0,0.83133085]
[1752679283377,0.02453,119270.0,119260.0,0.83599085]
[1752679283579,0.2588213,119280.0,119270.0,0.1676282]
[1752679283778,0.02476,119280.0,119270.0,0.1676282]
[1752679283969,0.04933,119300.0,119290.0,0.1676001]
[1752679284173,0.04933,119300.0,119290.0,1.30264697]
[1752679284174,4e-05,119300.0,119290.0,1.30264697]
[1752679284476,4e-05,119300.0,119290.0,0.65448697]
[1752679284779,4e-05,119300.0,119290.0,1.30260697]
[1752679285680,4e-05,119300.0,119290.0,1.31985435]
[1752679285873,0.05399,119340.0,119330.0,0.1675439]
[1752679286073,0.0418872,119330.0,119320.0,0.43349687]
[1752679286269,0.216848,119320.0,119310.0,0.01671139]
[1752679286470,0.221548,119320.0,119310.0,0.01671139]
[1752679286674,0.389172,119320.0,119310.0,0.01671139]
[1752679286881,1.34040001,119320.0,119310.0,0.01671139]
[1752679287274,0.73927914,119320.0,119310.0,0.83220339]
[1752679287478,0.73927914,119320.0,119310.0,0.18428339]
[1752679287981,0.721548,119320.0,119310.0,0.01671139]
[1752679288184,0.721548,119320.0,119310.0,0.66455139]
[1752679288488,0.226548,119320.0,119310.0,0.66455139]
[1752679288782,0.226548,119320.0,119310.0,0.66427139]
[1752679288983,0.221548,119320.0,119310.0,0.01671139]
[1752679289179,1.07566887,119320.0,119310.0,0.01671139]
[1752679289883,0.2215761,119300.0,119290.0,0.01724738]
[1752679290072,0.65507297,119300.0,119290.0,8e-08]
[1752679290273,0.2216182,119270.0,119260.0,1.17560865]
[1752679290575,0.2216182,119270.0,119260.0,1.82180865]
[1752679290883,0.1676224,119280.0,119270.0,0.2210182]
[1752679291082,0.1676142,119280.0,119270.0,0.69641917]
[1752679291481,0.1676142,119280.0,119270.0,0.48688687]
[1752679291684,0.1923882,119270.0,119260.0,1.82168865]
[1752679291879,0.2169182,119270.0,119260.0,1.82168865]
[1752679292280,0.2169182,119270.0,119260.0,1.34325095]
[1752679292475,0.1676206,119280.0,119270.0,0.262924]
[1752679292685,0.1676206,119280.0,119270.0,0.48688687]
[1752679292879,0.1676282,119270.0,119260.0,2.51098032]
[1752679293085,0.1676282,119270.0,119260.0,2.55971032]
[1752679293385,0.1676282,119270.0,119260.0,1.91395032]
[1752679293582,0.2514306,119280.0,119270.0,0.1676282]
[1752679293884,0.209525,119280.0,119270.0,0.48688687]
[1752679294091,0.209525,119280.0,119270.0,0.65451507]
[1752679294284,0.258815,119280.0,119270.0,0.02963]
[1752679294482,0.1676282,119270.0,119260.0,1.87204542]
[1752679294681,0.1676282,119270.0,119260.0,2.04179855]
[1752679294985,0.2169182,119270.0,119260.0,1.17660865]
[1752679295181,0.2169182,119270.0,119260.0,1.82164865]
[1752679295985,0.82281107,119270.0,119260.0,0.01780865]
[1752679296287,0.82301107,119270.0,119260.0,0.01780865]
[1752679296692,0.2216323,119260.0,119250.0,0.0002]
[1752679296883,0.2169463,119250.0,119240.0,0.01702754]
[1752679297092,0.2218463,119250.0,119240.0,0.01682754]
[1752679297283,0.2218463,119250.0,119240.0,0.18449794]
[1752679297484,0.2218463,119250.0,119240.0,0.01682754]
[1752679297686,0.82306317,119250.0,119240.0,0.01682754]
[1752679297989,0.82306317,119250.0,119230.0,0.0002]
[1752679297990,0.2216604,119240.0,119230.0,0.0002]
[1752679298185,0.2216885,119220.0,119210.0,8.226e-05]
[1752679298383,0.65518537,119220.0,119210.0,8.226e-05]
[1752679298585,0.2217167,119200.0,119190.0,0.02008656]
[1752679299192,0.2217167,119200.0,119190.0,0.00303996]
[1752679299992,0.04929,119200.0,119190.0,0.17078066]
[1752679300179,0.2170167,119200.0,119190.0,0.17078066]
[1752679300486,0.04929,119200.0,119190.0,0.17078066]
[1752679300683,0.2170167,119200.0,119190.0,0.17078066]
[1752679300984,0.2217167,119200.0,119190.0,0.64615996]
[1752679301377,0.2217167,119200.0,119190.0,0.00303996]
[1752679301582,0.82300557,119200.0,119190.0,0.00303996]
[1752679301984,0.3895087,119200.0,119190.0,0.00303996]
[1752679302177,0.3895087,119200.0,119190.0,0.17078076]
[1752679302389,0.8895087,119200.0,119190.0,0.00303996]
[1752679303384,0.7217167,119200.0,119190.0,0.17078076]
[1752679303691,0.2217167,119200.0,119190.0,0.17078076]
[1752679303888,0.2388652,119220.0,119210.0,0.1677126]
[1752679304189,0.2216886,119220.0,119210.0,0.1677126]
[1752679304389,0.2216886,119220.0,119200.0,0.64404]
[1752679304390,0.2170026,119210.0,119200.0,0.64404]
[1752679304591,0.2217026,119210.0,119200.0,0.8117667]
[1752679304890,0.04929,119210.0,119200.0,0.1677267]
[1752679305092,0.04929,119210.0,119200.0,0.2211167]
[1752679305093,0.02476,119210.0,119200.0,0.2211167]
[1752679305289,0.2169946,119220.0,119210.0,0.1677126]
[1752679305591,0.2169946,119220.0,119200.0,0.3049667]
[1752679305592,0.2170026,119210.0,119200.0,0.3049667]
[1752679306291,0.04929,119210.0,119200.0,0.3049667]
[1752679306484,0.2170026,119210.0,119200.0,0.2143066]
[1752679306787,0.1677267,119200.0,119190.0,0.85658426]
[1752679306987,0.1924867,119200.0,119190.0,0.90997426]
[1752679307184,0.2170167,119200.0,119190.0,0.00303996]
[1752679307489,0.65521357,119200.0,119190.0,0.00303996]
[1752679307886,0.82300557,119200.0,119190.0,0.00303996]
[1752679308087,0.1677408,119190.0,119180.0,0.00384913]
[1752679308284,0.65522767,119190.0,119180.0,0.00384913]
[1752679308481,0.82303567,119190.0,119180.0,0.00384913]
[1752679308685,0.1677971,119150.0,119140.0,0.88045924]
[1752679308893,0.2170871,119150.0,119140.0,0.65925804]
[1752679309083,0.2217871,119150.0,119140.0,0.65925804]
[1752679309289,0.2217871,119150.0,119140.0,0.82706924]
[1752679309593,0.2170871,119150.0,119140.0,0.85082924]
[1752679309790,0.2170871,119150.0,119140.0,0.87579924]
[1752679310488,0.04929,119160.0,119150.0,0.1677971]
[1752679310694,0.215223,119160.0,119150.0,0.1677935]
[1752679311396,0.1904771,119150.0,119140.0,0.87927114]
[1752679311587,0.2141071,119150.0,119140.0,0.71146804]
[1752679311789,0.2189471,119150.0,119140.0,0.65821804]
[1752679312102,0.2189471,119150.0,119140.0,0.82582924]
[1752679312485,0.125845,119160.0,119140.0,0.82582924]
[1752679312690,0.05115,119170.0,119160.0,0.167783]
[1752679312888,0.05115,119170.0,119150.0,0.57075007]
[1752679312889,0.04631,119160.0,119150.0,0.2211543]
[1752679313089,0.214093,119160.0,119150.0,0.2211543]
[1752679313288,0.214093,119160.0,119150.0,0.005]
[1752679313493,0.218933,119160.0,119150.0,0.005]
[1752679314389,0.2189471,119150.0,119140.0,0.65705804]
[1752679314595,0.2189471,119150.0,119140.0,0.01669804]
[1752679314899,0.2191471,119150.0,119140.0,0.65681804]
[1752679315393,0.2191471,119150.0,119130.0,1.15924]
[1752679315394,0.1678112,119140.0,119130.0,1.15924]
[1752679315591,0.2141352,119130.0,119120.0,0.30539759]
[1752679315792,0.2191752,119130.0,119120.0,0.80805149]
[1752679315992,0.65267207,119130.0,119120.0,9.219e-05]
[1752679316299,0.65267207,119130.0,119080.0,0.05336]
[1752679316300,0.05115,119100.0,119080.0,0.05336]
[1752679316503,0.1678816,119090.0,119080.0,0.2212553]
[1752679316695,0.1678816,119090.0,119080.0,0.2384794]
[1752679316890,0.1678816,119090.0,119080.0,0.0172241]
[1752679316891,0.2190316,119090.0,119080.0,0.0172241]
[1752679317095,0.2190316,119090.0,119080.0,0.1851198]
[1752679317295,0.21912112,119090.0,119080.0,0.1851198]
[1752679317491,8.952e-05,119090.0,119080.0,0.67197667]
[1752679317696,0.0882698,119120.0,119100.0,0.0953249]
[1752679317902,0.2980827,119120.0,119110.0,0.1678534]
[1752679318099,0.2561204,119120.0,119110.0,0.1678534]
[1752679318298,0.2561204,119120.0,119110.0,0.05336]
[1752679318597,0.0882798,119100.0,119080.0,0.6623841]
[1752679318797,0.2141916,119090.0,119080.0,0.6862541]
[1752679319004,0.2141916,119090.0,119080.0,0.0222241]
[1752679319005,0.2190316,119090.0,119080.0,0.0222241]
[1752679319609,0.2190316,119090.0,119080.0,0.0172241]
[1752679320507,1.15252847,119090.0,119080.0,0.0172241]
[1752679320797,1.15252847,119090.0,119060.0,0.06577899]
[1752679320798,0.2190598,119070.0,119060.0,0.01700899]
[1752679321296,0.2190598,119070.0,119060.0,0.18493289]
[1752679321495,0.2190598,119070.0,119060.0,0.01700899]
[1752679321496,0.82053267,119070.0,119060.0,0.01700899]
[1752679321698,0.2611024,119040.0,119030.0,0.1679652]
[1752679321890,0.2511024,119040.0,119030.0,0.1679652]
[1752679322094,0.2511024,119040.0,119010.0,2.14495355]
[1752679322095,0.05115,119030.0,119010.0,0.04666985]
[1752679322299,0.05115,119030.0,119020.0,0.1679803]
[1752679322603,0.2142694,119040.0,119030.0,0.1679662]
[1752679322896,0.2191094,119040.0,119030.0,0.1679662]
[1752679323096,0.00484,119060.0,119050.0,0.167938]
[1752679323300,0.1114858,119060.0,119040.0,0.72739747]
[1752679323599,0.0656202,119040.0,119020.0,0.2139688]
[1752679323801,0.2142762,119030.0,119020.0,0.1719745]
[1752679324097,0.2191162,119030.0,119020.0,0.004]
[1752679324304,0.2191199,119030.0,119010.0,0.27604847]
[1752679324503,0.1679803,119020.0,119010.0,0.23864057]
[1752679324695,0.1679803,119020.0,119010.0,0.23864337]
[1752679324897,0.2191303,119020.0,119010.0,0.01728897]
[1752679325495,0.2191303,119020.0,119010.0,0.01720542]
[1752679325496,0.82067517,119020.0,119010.0,0.01720542]
[1752679325899,1.32067517,119020.0,119010.0,0.01720542]
[1752679326399,0.8871783,119020.0,119010.0,0.01720542]
[1752679326700,1.32067517,119020.0,119010.0,0.01720542]
[1752679326908,0.2191586,119000.0,118990.0,0.18510787]
[1752679327204,0.2091586,119000.0,118990.0,0.17510787]
[1752679327404,0.50484,119020.0,119010.0,0.1679945]
[1752679327705,0.7148163,119020.0,119010.0,0.1679945]
[1752679327895,0.50484,119020.0,119010.0,0.1679945]
[1752679328198,0.2143045,119010.0,119000.0,0.3007793]
[1752679328408,0.05115,119010.0,119000.0,0.2520093]
[1752679328795,0.2191445,119010.0,119000.0,0.2520093]
[1752679328994,0.0931508,119010.0,118990.0,0.22169267]
[1752679329192,0.0931508,119010.0,118990.0,0.24556267]
[1752679329193,0.1916386,119000.0,118990.0,0.24556267]
[1752679329397,0.2143186,119000.0,118990.0,0.24570961]
[1752679329605,0.2191586,119000.0,118990.0,0.21724961]
[1752679329798,0.05115,119000.0,118990.0,0.21724961]
[1752679330100,0.2191586,119000.0,118990.0,0.00923211]
[1752679330600,0.2191586,119000.0,118990.0,0.17725481]
[1752679330801,0.04631,119000.0,118990.0,0.17725481]
[1752679331006,0.04631,119000.0,118990.0,0.22861481]
[1752679331301,0.04631,119010.0,119000.0,0.00459]
[1752679331494,0.04631,119000.0,118990.0,0.21824941]
[1752679331698,0.2143186,119000.0,118990.0,0.00723211]
[1752679331907,0.05115,119000.0,118990.0,0.17525481]
[1752679332102,0.2191586,119000.0,118990.0,0.17525481]
[1752679332295,0.2191586,119000.0,118990.0,0.00723211]
[1752679332501,0.2191586,119000.0,118990.0,0.17525481]
[1752679332696,0.2143186,119000.0,118990.0,0.22861481]
[1752679332900,0.2145186,119000.0,118990.0,0.01182211]
[1752679333105,0.2193586,119000.0,118990.0,0.17525481]
[1752679333694,0.04631,119020.0,119010.0,0.1679945]
[1752679333894,0.01906394,119030.0,119020.0,0.2213403]
[1752679334095,0.2142448,119060.0,119050.0,0.167938]
[1752679334500,0.04631,119060.0,119050.0,0.60143487]
[1752679335005,0.23811888,119080.0,119070.0,0.1679098]
[1752679335204,0.07022298,119080.0,119070.0,0.1679098]
[1752679335406,0.23811868,119080.0,119070.0,0.1679098]
[1752679335703,0.07022298,119080.0,119070.0,0.1679098]
[1752679335906,0.05115,119110.0,119100.0,0.2098223]
[1752679336200,0.2382584,119130.0,119120.0,0.1678393]
[1752679336400,0.2609384,119130.0,119120.0,0.1678393]
[1752679336706,0.2609384,119130.0,119110.0,0.8163734]
[1752679336707,0.2141493,119120.0,119110.0,0.8163734]
[1752679337202,0.2189893,119120.0,119110.0,0.64852]
[1752679337402,0.2141634,119110.0,119100.0,0.251786]
[1752679337604,0.2141634,119110.0,119100.0,0.890106]
[1752679337605,0.04631,119110.0,119100.0,0.890106]
[1752679337907,0.04631,119120.0,119110.0,0.1678534]
[1752679338108,0.0882677,119130.0,119110.0,0.1792449]
[1752679338400,0.2141493,119120.0,119110.0,0.2098093]
[1752679338706,0.2041634,119110.0,119100.0,0.2517875]
[1752679338908,0.2041634,119110.0,119100.0,0.9000675]
[1752679339203,0.1258872,119120.0,119110.0,0.1678534]
[1752679339204,0.04631,119120.0,119110.0,0.1678534]
[1752679339397,0.04631,119120.0,119110.0,0.65012027]
[1752679339704,0.2141493,119120.0,119110.0,0.65471027]
[1752679339904,0.2141493,119120.0,119110.0,1.30275027]
[1752679340101,0.2141493,119120.0,119110.0,0.65471027]
[1752679340402,0.2141493,119120.0,119110.0,0.64772]
[1752679340403,0.2802458,119120.0,119110.0,0.64772]
[1752679340797,0.0419655,119110.0,119090.0,0.1372975]
[1752679341006,0.3043252,119110.0,119100.0,0.8153075]
[1752679341504,0.02385,119110.0,119100.0,1.24880437]
[1752679341811,0.257442,119120.0,119110.0,0.1678534]
[1752679342113,0.257442,119120.0,119110.0,0.60135027]
[1752679342404,0.1678329,119130.0,119120.0,0.1918593]
[1752679342600,0.1678393,119120.0,119110.0,0.46218687]
[1752679342803,0.1678675,119100.0,119090.0,0.69502997]
[1752679343002,0.1678675,119100.0,119090.0,0.9100131]
[1752679343394,0.2154975,119100.0,119090.0,0.9101331]
[1752679343612,0.2154975,119100.0,119090.0,0.2615331]
[1752679343899,0.05063,119120.0,119110.0,0.1678534]
[1752679344199,0.0839152,119130.0,119110.0,1.13346687]
[1752679344399,0.2993814,119130.0,119120.0,0.1678393]
[1752679345106,0.0419545,119140.0,119100.0,0.68528507]
[1752679345107,0.1678534,119110.0,119100.0,0.68528507]
[1752679345410,0.3413684,119120.0,119110.0,0.1678534]
[1752679345805,0.3413688,119120.0,119110.0,0.1678534]
[1752679345993,0.299406,119120.0,119110.0,0.1678534]
[1752679346200,0.1916844,119130.0,119120.0,0.2148593]
[1752679346402,0.2154644,119130.0,119120.0,0.8676093]
[1752679346595,0.2203744,119130.0,119120.0,0.64808]
[1752679347006,0.2154693,119120.0,119110.0,0.2098038]
[1752679347309,0.2154834,119110.0,119100.0,0.261516]
[1752679347496,0.2154834,119110.0,119100.0,0.909276]
[1752679347896,0.2154834,119110.0,119100.0,0.261516]
[1752679348109,0.2154834,119110.0,119100.0,0.909156]
[1752679348306,0.2174644,119130.0,119120.0,0.2148593]
[1752679348607,0.2174644,119130.0,119120.0,1.30034617]
[1752679348801,0.2174644,119130.0,119120.0,0.64732]
[1752679349103,0.2203744,119130.0,119120.0,0.8151593]
[1752679349603,0.3043183,119120.0,119110.0,0.1678534]
[1752679349908,0.3043183,119120.0,119110.0,0.8146534]
[1752679350110,0.2098155,119120.0,119110.0,0.8663434]
[1752679350502,0.2154834,119120.0,119110.0,0.8386734]
[1752679350805,0.2156834,119120.0,119110.0,0.8663434]
[1752679351006,0.0002,119120.0,119110.0,1.29984027]
[1752679351709,0.1680393,119120.0,119110.0,1.29984027]
[1752679352202,0.1680393,119120.0,119110.0,0.65304027]
[1752679352398,0.2156693,119120.0,119110.0,0.69733]
[1752679352604,0.2205793,119120.0,119110.0,0.64564]
[1752679353206,0.2205793,119120.0,119110.0,0.8134933]
[1752679353407,0.0002,119120.0,119110.0,1.29868017]
[1752679353601,0.0002,119120.0,119110.0,1.36537663]
[1752679353806,0.0002,119120.0,119110.0,1.36477663]
[1752679354009,0.00491,119140.0,119130.0,0.1678251]
[1752679354010,0.1678121,119140.0,119130.0,0.1678251]
[1752679354208,0.1678121,119140.0,119130.0,0.8644351]
[1752679354411,0.2203521,119140.0,119130.0,0.8127451]
[1752679354707,0.31779251,119150.0,119140.0,0.167811]
[1752679355308,0.32270251,119150.0,119140.0,0.167811]
[1752679355606,0.0468536,119170.0,119160.0,0.1677829]
[1752679355815,0.2153988,119170.0,119160.0,0.8634329]
[1752679356118,0.2153988,119170.0,119160.0,0.69565]
[1752679356305,0.2153988,119170.0,119160.0,0.8117429]
[1752679356306,0.2203088,119170.0,119160.0,0.8117429]
[1752679356505,0.2203088,119170.0,119160.0,0.82456582]
[1752679356913,0.2153988,119170.0,119160.0,0.8634329]
[1752679357516,0.2203988,119170.0,119160.0,0.8634329]
[1752679357812,0.2253088,119170.0,119160.0,0.64396]
[1752679358019,0.2253088,119170.0,119150.0,0.2097321]
[1752679358020,0.2154129,119160.0,119150.0,0.2097321]
[1752679358317,0.2203229,119160.0,119150.0,0.64328]
[1752679358515,0.2203229,119160.0,119150.0,0.811077]
[1752679358715,0.1678111,119140.0,119130.0,0.20887509]
[1752679358913,0.2203511,119140.0,119130.0,0.66056019]
[1752679359406,0.2203511,119140.0,119130.0,0.82838529]
[1752679360016,0.003,119160.0,119150.0,0.0885632]
[1752679360205,0.003,119160.0,119150.0,1.42206627]
[1752679360410,0.3041663,119190.0,119180.0,0.1677547]
[1752679360604,0.32177211,119190.0,119180.0,0.1677547]
[1752679360903,0.1677407,119190.0,119180.0,0.73681567]
[1752679361108,0.2153674,119200.0,119190.0,0.1677407]
[1752679361416,0.1677266,119200.0,119190.0,0.69477]
[1752679361611,0.2153566,119200.0,119190.0,0.00467]
[1752679361812,0.2573008,119200.0,119190.0,0.8103007]
[1752679362119,0.1677266,119200.0,119190.0,0.69425]
[1752679362417,0.1677266,119200.0,119190.0,1.37935257]
[1752679362619,0.1677266,119200.0,119190.0,0.9458557]
[1752679362809,0.1677266,119200.0,119190.0,1.33741967]
[1752679363311,0.18537222,119200.0,119190.0,1.29548757]
[1752679363511,0.21415222,119200.0,119190.0,1.29548757]
[1752679363712,0.23800222,119200.0,119190.0,0.8619907]
[1752679364120,0.23800222,119200.0,119190.0,0.69425]
[1752679364415,0.1677548,119180.0,119170.0,0.2613857]
[1752679364620,0.2892574,119190.0,119180.0,0.2194448]
[1752679364923,0.30691329,119190.0,119180.0,0.2194448]
[1752679365214,0.01765589,119190.0,119180.0,0.65294167]
[1752679365415,0.2566056,119200.0,119190.0,0.1677408]
[1752679365620,0.27427344,119200.0,119190.0,0.8610308]
[1752679366114,0.02266784,119200.0,119190.0,1.29452767]
[1752679366315,0.06495748,119230.0,119220.0,0.1906985]
[1752679366620,0.041916,119250.0,119240.0,0.1676704]
[1752679366621,0.2383401,119250.0,119240.0,0.1676704]
[1752679366807,0.28025338,119250.0,119240.0,1.26608727]
[1752679367013,0.20080035,119260.0,119250.0,0.1676564]
[1752679367014,0.22769398,119260.0,119250.0,0.1676564]
[1752679367211,0.22769398,119260.0,119250.0,0.62415327]
[1752679367212,0.06004748,119260.0,119250.0,0.62415327]
[1752679367418,0.04244301,119270.0,119260.0,0.2010123]